[Event "5th Vera Menchik Memorial 2022"]
[Site "Prag"]
[Date "2022.06.05"]
[Round "4.15"]
[White "Mikhno, Artem"]
[Black "Richtrova, Eliska"]
[Result "0-1"]
[ECO "A41"]
[WhiteElo "1405"]
[BlackElo "2204"]
[Annotator "TA"]
[PlyCount "82"]
[EventDate "2022.06.05"]
[EventType "tourn"]
[EventCountry "CZE"]
[SourceTitle "playchess.com"]
[Source "ChessBase"]
[SourceQuality "1"]
[TimeControl "720+3"]

{[%evp 10,81,19,-28,-22,-28,-18,-54,-56,-68,-50,-66,-57,-62,-36,-64,-47,-109,-89,-139,-117,-159,-112,-124,-54,-62,-56,-56,-56,-59,-43,-61,-68,-197,-187,-202,-188,-206,-200,-204,-192,-199,-172,-221,-221,-258,-233,-222,-229,-231,-227,-243,-241,-254,-248,-255,-251,-261,-266,-255,-259,-233,-214,-296,-296,-296,-296,-339,-360,-354,-349,-802,-797,-29999]} 1. d4 {[%emt 0:00:03]} d6 {[%emt 0:00:04]} 2. c4 {[%emt 0:00:02]} e5 {[%emt 0:00:01]} 3. dxe5 {[%emt 0:00:21]} dxe5 {[%emt 0:00:01]} 4. Qxd8+ {[%emt 0:00:03]} Kxd8 {[%emt 0:00:02]} 5. Nc3 {[%emt 0:00:03]} c6 {[%emt 0:00:03]} 6. Bg5+ {[%emt 0:00:07]} (6. e4 {is superior.}) 6... f6 {[%emt 0:00:13] A41: 1 d4 d6: Tartakower System and Modern Defence.} 7. O-O-O+ {[%emt 0:00:06]} Kc7 {[%emt 0:00:04]} 8. Bh4 {[%emt 0:00:06]} Be6 {[%emt 0:00:15] Black is slightly better.} 9. e4 {[%emt 0:00:02]} Nd7 {[%emt 0:00:08]} 10. f3 {[%emt 0:00:26] [#]} Bb4 $146 {[%emt 0:00:51]} ({Predecessor:} 10... Nh6 11. b3 Nf7 12. Nge2 a5 13. Kc2 Be7 14. Nc1 Nc5 15. Nd3 Na6 16. Be2 Nb4+ {1-0 (35) Yanchenko,R (2467)-Erzhanov,A (2229) Chess.com INT 2021}) 11. Kc2 {[%emt 0:00:21]} a5 {[%emt 0:00:22][%cal Ba7a5,Ba5a4][%mdl 32]} 12. Bf2 {[%emt 0:01:13]} a4 {[%emt 0:00:15]} 13. a3 {[%emt 0:00:48]} (13. b3 $15) 13... Be7 {[%emt 0:00:06]} (13... Bd6 {feels hotter.} 14. g3 Nh6 15. Be3 b6) 14. Bd3 {[%emt 0:00:35]} (14. g3 $142) 14... Nh6 {[%emt 0:00:27]} 15. Nge2 {[%emt 0:00:08]} Rhd8 {[%emt 0:00:06]} (15... Bc5 $142 16. Bxc5 Nxc5) 16. Ng3 {[%emt 0:00:10] [#]} Nc5 {[%emt 0:00:12]} ({Black should play} 16... Bc5 $1 $17 {[%cal Rc5f2]} 17. Bxc5 Nxc5) 17. Be2 $15 {[%emt 0:01:09]} g6 {[%emt 0:01:16]} 18. Rxd8 {[%emt 0:00:07]} Kxd8 {[%emt 0:00:00]} 19. Rd1+ {[%emt 0:00:04]} Kc7 {[%emt 0:00:01]} 20. Be3 {[%emt 0:00:10]} Nf7 {[%emt 0:00:07][%cal Bh6f7,Bf7e5,Be5d3,Bd3c5,Bc5b3][%mdl 32]} 21. f4 {[%emt 0:00:03] This costs White the game.} (21. Nf1 $15) 21... exf4 $19 {[%emt 0:01:43]} 22. Bxf4+ {[%emt 0:00:02]} Bd6 {[%emt 0:00:02]} 23. Rf1 {[%emt 0:01:08]} Ne5 {[%emt 0:00:13]} 24. Be3 {[%emt 0:00:55]} Ncd7 {[%emt 0:00:03]} (24... Nxc4 25. Bxc4 Bxc4 26. Rxf6) 25. c5 {[%emt 0:00:15]} Bb3+ {[%emt 0:00:20]} (25... Nxc5 26. Rxf6 Re8 27. Kb1 $17) (25... Bxc5 26. Bxc5 Nxc5 27. Rxf6 $17) 26. Kc1 {[%emt 0:00:12]} (26. Kb1 $142 Be7 27. Rc1) 26... Be7 {[%emt 0:00:10]} (26... Nxc5 27. Rxf6 Ncd3+ 28. Kb1 $17) (26... Bxc5 27. Bxc5 Nxc5 28. Rxf6) 27. Bd4 {[%emt 0:00:00]} Rf8 {[%emt 0:00:14]} (27... Nxc5 $2 28. Bxc5 Bxc5 29. Rxf6 $19) 28. Bd1 {[%emt 0:00:05]} Nd3+ {[%emt 0:00:38]} 29. Kb1 {[%emt 0:00:15]} N3xc5 {[%emt 0:00:14]} ({Stronger than} 29... Bxc5 30. Bxb3 axb3 31. Nce2) ({Inferior is} 29... N7xc5 30. Bxb3 Nxb3 31. Be3) 30. Bxb3 {[%emt 0:00:20]} Nxb3 {[%emt 0:00:10]} ({Wrong is} 30... axb3 $2 31. Nge2) 31. Be3 {[%emt 0:00:03]} b5 {[%emt 0:00:02]} 32. Nge2 {[%emt 0:00:03]} Ne5 {[%emt 0:00:16]} 33. Bf4 {[%emt 0:00:01]} Bd6 {[%emt 0:00:07]} 34. Rd1 {[%emt 0:00:02]} Nc4 {[%emt 0:00:35]} 35. Bxd6+ {[%emt 0:00:08]} Nxd6 {[%emt 0:00:02]} 36. Nf4 {[%emt 0:00:02] [#] Threatens to win with Ne6+.} Re8 {[%emt 0:00:06] Inhibits Ne6+.} 37. Re1 {[%emt 0:00:01]} Nc4 {[%emt 0:00:10]} 38. Nd3 {[%emt 0:00:22]} Rd8 {[%emt 0:00:23]} 39. Nf4 {[%emt 0:00:19]} Rd2 {[%emt 0:00:10][%csl Gc4][%cal Rd2b2]} 40. Ne6+ $2 {[%emt 0:00:08]} (40. Re2) 40... Kd6 {[%emt 0:00:13][%csl Gc4][%cal Rd2b2]} 41. Nf8 {[%emt 0:00:03]} Rxb2# {[%emt 0:00:02] Weighted Error Value: White=0.51/Black=0.08 (flawless)} 0-1

[Event "5th Vera Menchik Memorial 2022"]
[Site "Prag"]
[Date "2022.06.05"]
[Round "4.16"]
[White "Pribyl, Josef"]
[Black "Slanec, Jan"]
[Result "0-1"]
[ECO "A27"]
[WhiteElo "2217"]
[BlackElo "1957"]
[Annotator "TA"]
[PlyCount "54"]
[EventDate "2022.06.05"]
[EventType "tourn"]
[EventCountry "CZE"]
[SourceTitle "playchess.com"]
[Source "ChessBase"]
[SourceQuality "1"]
[TimeControl "720+3"]

{[%evp 9,54,63,65,57,62,36,57,37,5,-3,100,86,164,151,158,165,141,89,104,14,46,19,182,0,0,-29,-33,-85,-75,-75,-92,-93,-105,-208,-189,-237,-204,-841,-812,-1099,-1081,-29991,-375,-29992,-29993,-29996,-29997]} 1. c4 {[%emt 0:00:00]} e5 {[%emt 0:00:04]} 2. Nc3 {[%emt 0:00:02]} Nc6 {[%emt 0:00:06]} 3. Nf3 {[%emt 0:00:02]} f5 {[%emt 0:00:01]} 4. d4 {[%emt 0:00:02]} exd4 {[%emt 0:00:16]} 5. Nxd4 {[%emt 0:00:02]} Nxd4 {[%emt 0:00:04]} 6. Qxd4 {[%emt 0:00:02] A27: English Opening: Three Knights Variation.} Nf6 {[%emt 0:00:03]} 7. Qe5+ {[%emt 0:00:25]} Be7 {[%emt 0:00:31]} 8. Qxf5 {[%emt 0:00:03] White is slightly better.} d5 {[%emt 0:00:08]} 9. Qd3 {[%emt 0:00:01][%cal Rc4d5] [#]} dxc4 $146 {[%emt 0:00:10]} (9... d4 $1 $11 10. Ne4 Nxe4 11. Qxe4 O-O 12. Qd5+ Qxd5 13. cxd5 Bf5) ({Predecessor:} 9... d4 10. Nb5 c5 11. Bf4 O-O 12. Nc7 Rb8 13. Nb5 Ra8 14. Nc7 Rb8 15. Nd5 Nxd5 16. Bxb8 {0-1 (23) Stumpf,D (1785)-Hagenbeck Huebert,B (1744) Playchess.com INT 2020}) 10. Qxc4 $16 {[%emt 0:00:14]} Bf5 {[%emt 0:02:19]} (10... c6 $16) 11. e4 $18 {[%emt 0:00:15][%cal Be2e4,Be4e5][%mdl 32]} Bg6 {[%emt 0:00:01]} 12. e5 {[%emt 0:00:09]} Nd7 {[%emt 0:00:34]} 13. Bf4 {[%emt 0:00:03]} ({White should play} 13. Be3 {Threatens to win with Rd1.} c6 14. O-O-O) 13... Nb6 $16 {[%emt 0:00:10]} 14. Qe2 {[%emt 0:00:36]} (14. Qe6 $16) 14... Qd4 {[%emt 0:00:23]} (14... O-O $5 {[%cal Rf8f4]} 15. g3 Bb4 $16) 15. g3 {[%emt 0:00:26] Hoping for Rd1.} O-O-O $2 {[%emt 0:00:10]} (15... Bb4 $1 $11 16. Qe3 (16. Rd1 Bxc3+ 17. bxc3 Qxc3+ 18. Qd2 Qf3 $11) 16... Qd5) 16. Bh3+ $2 {[%emt 0:00:12]} ({White should try} 16. Rd1 $18 Qb4 17. Bh3+ Kb8 18. O-O) 16... Kb8 $11 {[%emt 0:00:05]} 17. O-O {[%emt 0:00:06]} Bd3 {[%emt 0:00:14]} 18. Qf3 {[%emt 0:00:44]} Bxf1 $17 {[%emt 0:00:13]} 19. Rxf1 {[%emt 0:00:03] [#]} g5 $1 {[%emt 0:00:19]} 20. Bg2 {[%emt 0:00:25][%csl Gg2][%cal Rf3b7]} c6 {[%emt 0:00:17] Active counter play!} 21. Be3 {[%emt 0:00:11]} (21. Rd1 $17 Qb4 22. Bc1) 21... Qxe5 $19 {[%emt 0:00:14]} 22. Qf7 {[%emt 0:00:53]} (22. Re1 $142 Qg7 23. h4) 22... Bc5 {[%emt 0:01:07]} 23. Bc1 $2 {[%emt 0:00:10]} (23. Bxc5 Qxc5 24. Ne4) 23... Rhf8 {[%emt 0:00:30]} 24. Qxh7 {[%emt 0:00:47] [#]} Rxf2 $1 {[%emt 0:00:30][%mdl 512] ( -> ...Rdf8)} 25. Kh1 {[%emt 0:00:27]} (25. Qe4 Rf4+) 25... Rxf1+ {[%emt 0:00:24]} 26. Bxf1 {[%emt 0:00:00]} Qd4 {[%emt 0:00:14][%csl Gc5][%cal Rd4g1]} 27. Ne2 {[%emt 0:00:14]} Qd5+ {[%emt 0:00:28] What a bad dream for White.  Weighted Error Value: White=0.99/Black=0.28 (precise)} 0-1

[Event "5th Vera Menchik Memorial 2022"]
[Site "Prag"]
[Date "2022.06.05"]
[Round "5.2"]
[White "Jacko, Vladimir"]
[Black "Pulpan, Jakub"]
[Result "0-1"]
[ECO "C54"]
[WhiteElo "2379"]
[BlackElo "2418"]
[Annotator "TA"]
[PlyCount "50"]
[EventDate "2022.06.05"]
[EventType "tourn"]
[EventCountry "CZE"]
[SourceTitle "playchess.com"]
[Source "ChessBase"]
[SourceQuality "1"]
[TimeControl "720+3"]

{[%evp 9,50,14,21,8,0,-33,0,-26,-10,-34,-6,-75,-65,-53,-53,-71,-45,-56,-62,-52,18,-26,-10,-25,-23,-152,-32,-43,47,-305,-298,-302,-297,-298,-304,-303,-245,-216,-201,-1125,-543,-527,-513]} 1. e4 {[%emt 0:00:02]} e5 {[%emt 0:00:03]} 2. Nf3 {[%emt 0:00:03]} Nc6 {[%emt 0:00:10]} 3. Bc4 {[%emt 0:00:02]} Nf6 {[%emt 0:00:17]} 4. d3 {[%emt 0:00:05]} Bc5 {[%emt 0:00:09]} 5. c3 {[%emt 0:00:11]} O-O {[%emt 0:00:54]} 6. Bb3 {[%emt 0:00:01] C54: Giuoco Piano: 4 c3 Nf6, main lines with 5 d4 and 5 d3.} d5 {[%emt 0:00:36]} 7. Qe2 {[%emt 0:00:04]} h6 {[%emt 0:00:27]} 8. Nbd2 {[%emt 0:00:05] The position is equal.} a5 {[%emt 0:00:06]} 9. a4 {[%emt 0:01:31] [#]} Re8 $146 {[%emt 0:00:28]} ({Predecessor:} 9... Be6 10. Bc2 Re8 11. O-O Nh5 12. Nb3 Bb6 13. Ng5 hxg5 14. Qxh5 dxe4 15. dxe4 g4 {½-½ (51) Stopa,J (2471)-Gareyev,T (2590) Philadelphia 2009}) 10. Nf1 {[%emt 0:00:52]} (10. exd5 $11 Nxd5 11. Ne4) 10... b6 {[%emt 0:00:08] [#] White must now prevent ...Ba6.} 11. Ng3 {[%emt 0:01:27]} Ba6 {[%emt 0:00:05] Strongly threatening ...dxe4.} 12. Bc2 {[%emt 0:00:08]} Bf8 {[%emt 0:00:36]} 13. O-O {[%emt 0:00:07]} dxe4 {[%emt 0:00:04]} 14. Nxe4 {[%emt 0:00:02]} Nd5 {[%emt 0:00:01]} (14... Nh7 $15) 15. Qd1 {[%emt 0:01:24]} (15. Bb3 {keeps more tension.} Nf4 16. Bxf4 exf4 17. Qd2) 15... Qd7 {[%emt 0:00:38]} 16. Re1 {[%emt 0:00:05][%cal Oc1h6]} Rad8 $36 {[%emt 0:00:11][%mdl 2048] Black fights for an advantage.} 17. d4 {[%emt 0:01:14]} (17. Bxh6 $11 {keeps the balance.} gxh6 18. c4) 17... f5 {[%emt 0:00:25]} (17... exd4 $17 {[%cal Od4d3] And now ...d3! would win.} 18. Bb3 dxc3 19. bxc3 Ne5 20. Nxe5 Rxe5) 18. Ng3 $15 {[%emt 0:00:07][%csl LRe5,LRf5]} e4 {[%emt 0:00:16]} ({Better is} 18... f4 $1 $15 19. Nh5 exd4) 19. Ne5 $2 {[%emt 0:01:28][%mdl 8192] [#] Now White is beyond hope.} (19. Nh4 $14) 19... Nxe5 $19 {[%emt 0:00:10]} 20. dxe5 {[%emt 0:00:01]} Rxe5 {[%emt 0:00:28]} 21. Bb3 {[%emt 0:00:02]} Kh7 {[%emt 0:00:44]} 22. Qh5 {[%emt 0:00:24]} g6 {[%emt 0:00:25] Active counter play!} 23. Qh4 {[%emt 0:00:30]} Qe7 {[%emt 0:00:36] Prevents Bg5.} 24. Qh3 {[%emt 0:00:03]} (24. Qxe7+ Bxe7 25. Ne2) 24... Bc8 {[%emt 0:00:08]} (24... e3 $142 {( -> ...exf2+)} 25. Rxe3 Nf4) 25. Bxd5 {[%emt 0:00:09]} f4 {[%emt 0:00:31] Weighted Error Value: White=0.81/Black=0.51} ({But not} 25... Rdxd5 $2 26. Bf4 $19) 0-1

[Event "5th Vera Menchik Memorial 2022"]
[Site "Prag"]
[Date "2022.06.05"]
[Round "5.3"]
[White "Jirovsky, Milos"]
[Black "Fedorov, Evgueny"]
[Result "1-0"]
[ECO "A30"]
[WhiteElo "2458"]
[BlackElo "2236"]
[Annotator "TA"]
[PlyCount "91"]
[EventDate "2022.06.05"]
[EventType "tourn"]
[EventCountry "CZE"]
[SourceTitle "playchess.com"]
[Source "ChessBase"]
[SourceQuality "1"]
[TimeControl "720+3"]

{[%evp 20,91,-8,0,36,25,31,28,119,115,106,106,131,135,118,105,140,132,151,139,155,163,144,112,163,146,173,122,178,166,186,144,202,177,156,137,127,99,206,153,145,146,336,359,355,331,426,391,456,410,434,412,560,567,602,470,756,745,863,878,863,855,861,708,4794,4982,2948,4802,2415,2742,1819,1462,1222,1140]} 1. Nf3 {[%emt 0:00:01]} Nf6 {[%emt 0:00:02]} 2. c4 {[%emt 0:00:00]} c5 {[%emt 0:00:02]} 3. g3 {[%emt 0:00:02]} b6 {[%emt 0:00:03]} 4. Bg2 {[%emt 0:00:01]} Bb7 {[%emt 0:00:02]} 5. O-O {[%emt 0:00:02]} e6 {[%emt 0:00:03]} 6. Nc3 {[%emt 0:00:01]} a6 {[%emt 0:00:04]} 7. d4 {[%emt 0:00:04]} cxd4 {[%emt 0:00:02]} 8. Qxd4 {[%emt 0:00:01]} d6 {[%emt 0:00:02]} 9. Ng5 {[%emt 0:00:04]} Bxg2 {[%emt 0:00:55]} 10. Kxg2 {[%emt 0:00:02]} Be7 {[%emt 0:02:38]} 11. Rd1 {[%emt 0:00:05]} Ra7 {[%emt 0:01:12] A30: Symmetrical English: Double Fianchetto and Hedgehog.} 12. Be3 {[%emt 0:00:37][%cal Bc1e3,Be3b6,Bb6a5][%mdl 32]} O-O {[%emt 0:01:49] [#]} 13. Qxb6 $146 {[%emt 0:01:42]} (13. Nge4 {is interesting.} Nfd7 14. Nxd6 Nc6 15. Qe4) ({Predecessor:} 13. b3 Nc6 14. Qf4 Rd7 15. Rac1 Ne5 16. Nf3 Neg4 17. Ne4 Nxe3+ 18. Qxe3 Qc7 19. Nxf6+ Bxf6 {1-0 (69) Schulze,E (2260)-Weigler,A Germany 1992}) 13... Qxb6 {[%emt 0:00:15]} (13... Rc7 $1 $11 {remains equal.}) 14. Bxb6 $16 {[%emt 0:00:01]} Rb7 {[%emt 0:00:02] [#]} 15. Na4 {[%emt 0:00:13] 0x0.001e364e3515dp-1022s more active pieces. The black rooks are badly placed.} Nbd7 {[%emt 0:01:58]} 16. Ba5 {[%emt 0:00:13]} Rc8 {[%emt 0:00:13]} 17. Rac1 {[%emt 0:00:10]} h6 {[%emt 0:01:36]} 18. Nf3 {[%emt 0:00:06]} Nc5 {[%emt 0:00:19]} 19. Nxc5 {[%emt 0:00:11]} Rxc5 {[%emt 0:00:04]} 20. b4 {[%emt 0:00:05]} Rc8 {[%emt 0:00:05]} 21. a3 {[%emt 0:00:04]} Ne4 {[%emt 0:00:20]} (21... Nd7 $16 {might work better.} 22. e4 g5) 22. Nd2 {[%emt 0:00:09]} Nf6 {[%emt 0:00:15]} 23. Rc2 {[%emt 0:00:22]} ({White should play} 23. a4 $18) 23... Ne8 {[%emt 0:00:46]} (23... g5 $16 24. Rcc1 Kf8) 24. Rdc1 $18 {[%emt 0:00:15]} f5 {[%emt 0:00:03]} 25. e4 {[%emt 0:00:37]} g6 {[%emt 0:00:05]} (25... fxe4 $16 26. Nxe4 Nf6) 26. f4 {[%emt 0:00:02]} Kf7 {[%emt 0:00:02]} 27. Kf3 {[%emt 0:00:01]} Nf6 {[%emt 0:00:04]} 28. h3 {[%emt 0:00:16]} Rcb8 {[%emt 0:00:14]} (28... h5 $16) 29. Re1 {[%emt 0:00:20][%cal Bc1e1,Be1e3,Be3d3][%mdl 32]} Rd7 {[%emt 0:00:05]} 30. Re3 {[%emt 0:00:12]} d5 $2 {[%emt 0:00:06] A mistake that costs the game.} (30... Nxe4 $16 31. Nxe4 fxe4+ 32. Rxe4 (32. Kxe4 Rc8 $16) 32... Rc8) 31. exd5 {[%emt 0:00:29]} exd5 {[%emt 0:00:01]} 32. c5 {[%emt 0:00:08][%cal Bc4c5,Bc5c6,Bc6c7][%mdl 32]} Ne4 {[%emt 0:00:02]} 33. Rd3 {[%emt 0:00:14]} ({Weaker is} 33. Nxe4 fxe4+ 34. Kg2 Rc8 $16) 33... Rc8 {[%emt 0:00:02]} 34. Nb3 {[%emt 0:00:07]} Bf6 {[%emt 0:00:01]} 35. c6 {[%emt 0:00:12] [#] Black must now prevent a4.} Rd6 {[%emt 0:00:00]} 36. c7 {[%emt 0:00:00] White is clearly winning.} Ke6 {[%emt 0:00:02]} 37. Nc5+ {[%emt 0:00:12]} Ke7 {[%emt 0:00:01]} (37... Nxc5 $142 38. bxc5 Rd7) 38. Na4 {[%emt 0:00:15]} d4 {[%emt 0:00:15]} 39. Nb6 {[%emt 0:00:09]} Rxb6 {[%emt 0:00:02]} 40. Bxb6 {[%emt 0:00:01]} Nc3 {[%emt 0:00:06]} 41. Bxd4 {[%emt 0:00:13]} Nb5 {[%emt 0:00:03]} 42. Bxf6+ {[%emt 0:00:03]} Kxf6 {[%emt 0:00:00]} 43. a4 {[%emt 0:00:06]} Rxc7 {[%emt 0:00:02]} 44. Rxc7 {[%emt 0:00:03]} Nxc7 {[%emt 0:00:01]} 45. Rd6+ {[%emt 0:00:01]} Ke7 {[%emt 0:00:02]} 46. Rxg6 {[%emt 0:00:02] Weighted Error Value: White=0.22 (precise) /Black=0.48} 1-0

[Event "5th Vera Menchik Memorial 2022"]
[Site "Prag"]
[Date "2022.06.05"]
[Round "5.4"]
[White "Bezdek, Tomas"]
[Black "Sahidi, Samir"]
[Result "0-1"]
[ECO "C50"]
[WhiteElo "1957"]
[BlackElo "2459"]
[Annotator "TA"]
[PlyCount "60"]
[EventDate "2022.06.05"]
[EventType "tourn"]
[EventCountry "CZE"]
[SourceTitle "playchess.com"]
[Source "ChessBase"]
[SourceQuality "1"]
[TimeControl "720+3"]

{[%evp 10,60,12,8,34,0,18,0,27,24,23,24,32,10,29,29,33,35,46,53,42,41,49,22,27,23,22,28,31,1,15,0,0,0,0,-4,0,0,0,0,0,0,20,-46,-26,-52,-8,-33,-11,-116,-96,-233,-212]} 1. e4 {[%emt 0:00:01]} e5 {[%emt 0:00:02]} 2. Nf3 {[%emt 0:00:01]} Nc6 {[%emt 0:00:02]} 3. Bc4 {[%emt 0:00:01]} Bc5 {[%emt 0:00:04]} 4. O-O {[%emt 0:00:08]} Nf6 {[%emt 0:00:06]} 5. d3 {[%emt 0:00:01]} d6 {[%emt 0:00:23]} 6. a4 {[%emt 0:00:06]} a6 {[%emt 0:00:15] C50: Hungarian Defence and Giuoco Pianissimo.} 7. Be3 {[%emt 0:00:10]} O-O {[%emt 0:00:13]} 8. Nbd2 {[%emt 0:00:26]} Ba7 {[%emt 0:00:26] The position is equal.} 9. Bxa7 {[%emt 0:00:26]} Rxa7 {[%emt 0:00:01]} 10. c3 {[%emt 0:00:30]} Ne7 {[%emt 0:00:24]} 11. d4 {[%emt 0:00:23]} Ng6 {[%emt 0:00:01]} 12. Re1 {[%emt 0:00:56] [#]} h6 $146 {[%emt 0:00:10]} ({Predecessor:} 12... c6 13. a5 Qc7 14. Qb3 Ra8 15. dxe5 dxe5 16. Bf1 Be6 17. Bc4 Bd7 18. Ng5 Bc8 {½-½ (38) Boricha,K (2095)-Beukema,S (2414) Basel 2019}) 13. Nf1 {[%emt 0:00:24]} Bg4 {[%emt 0:01:18]} 14. h3 {[%emt 0:00:48]} Bxf3 {[%emt 0:00:11]} 15. Qxf3 {[%emt 0:00:01]} c6 {[%emt 0:00:04]} 16. Qe3 {[%emt 0:00:50] [#] And now dxe5 would win.} Ra8 {[%emt 0:00:10]} 17. Rad1 {[%emt 0:00:22]} Qc7 {[%emt 0:00:32]} 18. Ba2 {[%emt 0:00:40]} Rfe8 {[%emt 0:00:11]} 19. Qg3 {[%emt 0:00:44] Hoping for Qxg6.} Nf4 {[%emt 0:00:43]} 20. dxe5 {[%emt 0:00:25]} (20. Bb3 {keeps more tension.} Qb6 21. Nd2 Rad8 22. Ra1) 20... dxe5 {[%emt 0:00:02]} 21. Qf3 {[%emt 0:01:37]} Qa5 {[%emt 0:00:54]} 22. Bb3 {[%emt 0:02:38]} Qb6 {[%emt 0:00:14]} 23. Bc4 {[%emt 0:00:31]} Rad8 {[%emt 0:00:05][%cal Ba8d8,Bd8d4,Bd4d2][%mdl 32] White must now prevent ...Rxd1.} 24. b4 {[%emt 0:00:22]} a5 {[%emt 0:00:04]} 25. Rb1 {[%emt 0:00:16]} axb4 {[%emt 0:00:12]} 26. cxb4 {[%emt 0:00:05]} (26. Rxb4 $11 Qa7 27. Qe3) 26... Rd4 $15 {[%emt 0:00:13]} 27. Qb3 {[%emt 0:00:10]} Rf8 {[%emt 0:00:16]} (27... Re7 $5 {[%cal Rf6e4]}) 28. Ng3 {[%emt 0:00:03]} Rd2 {[%emt 0:00:13]} 29. Rf1 {[%emt 0:00:12]} (29. Qe3 $11 Qxe3 30. Rxe3) 29... Qd4 $17 {[%emt 0:00:12] [#] aiming for ...b5. 0x0.00166aa4ef81dp-1022s more active pieces.} 30. Rbd1 {[%emt 0:00:05]} (30. Rbe1 $17) 30... Nxe4 {[%emt 0:01:25] Weighted Error Value: White=0.25 (precise) /Black=0.09 (flawless)} 0-1

[Event "5th Vera Menchik Memorial 2022"]
[Site "Prag"]
[Date "2022.06.05"]
[Round "5.5"]
[White "Postupa, Pavel"]
[Black "Mladek, Richard"]
[Result "0-1"]
[ECO "C78"]
[WhiteElo "2235"]
[BlackElo "2361"]
[Annotator "TA"]
[PlyCount "82"]
[EventDate "2022.06.05"]
[EventType "tourn"]
[EventCountry "CZE"]
[SourceTitle "playchess.com"]
[Source "ChessBase"]
[SourceQuality "1"]
[TimeControl "720+3"]

{[%evp 11,82,0,9,3,14,10,12,16,31,-2,-1,-19,-20,-34,-26,-33,-39,-51,-44,-69,-78,-118,-123,-120,-113,-118,-111,-341,-333,-372,-365,-368,-368,-385,-387,-390,-397,-400,-400,-431,-447,-496,-490,-496,-489,-480,-452,-791,-736,-670,-387,-550,-412,-559,-549,-1894,-1882,-1833,-1791,-2977,-3100,-29985,-29985,-29993,-1414,-1189,-1144,-29988,-29989,-29992,-29993,-29997,-29998]} 1. e4 {[%emt 0:00:03]} e5 {[%emt 0:00:00]} 2. Nf3 {[%emt 0:00:02]} Nc6 {[%emt 0:00:01]} 3. Bb5 {[%emt 0:00:01]} a6 {[%emt 0:00:00]} 4. Ba4 {[%emt 0:00:01]} Nf6 {[%emt 0:00:02]} 5. d3 {[%emt 0:00:05]} Bc5 {[%emt 0:00:01]} 6. O-O {[%emt 0:00:02]} d6 {[%emt 0:00:07]} 7. h3 {[%emt 0:00:03] C78: Ruy Lopez: Archangelsk and Möller Defences.} O-O {[%emt 0:00:07]} 8. c3 {[%emt 0:00:09]} Ba7 {[%emt 0:00:04]} 9. Nbd2 {[%emt 0:00:48] The position is equal.} Ne7 {[%emt 0:00:08]} 10. Bb3 {[%emt 0:00:09]} Ng6 {[%emt 0:00:10] [#]} 11. Nc4 $146 {[%emt 0:00:04]} ({Predecessor:} 11. Re1 h6 12. Nf1 Bd7 13. Ng3 b5 14. d4 c5 15. a4 Bb6 16. Be3 Qc7 17. Qc1 cxd4 18. cxd4 Qxc1 19. Rexc1 exd4 20. Bxd4 Bxd4 21. Nxd4 bxa4 22. Bxa4 {½-½ (22) Siigur,J (2418)-Diaz,H (2262) ICCF email 2020}) 11... h6 {[%emt 0:00:32]} 12. Be3 {[%emt 0:00:03]} c5 {[%emt 0:11:27]} 13. a4 {[%emt 0:00:57]} Be6 {[%emt 0:00:00]} 14. Qe2 {[%emt 0:00:10]} Re8 {[%emt 0:00:00]} 15. Rfd1 {[%emt 0:00:12]} Qc7 {[%emt 0:00:00]} 16. Ncd2 {[%emt 0:00:07] [#]} d5 $1 {[%emt 0:00:00]} 17. exd5 {[%emt 0:00:27]} Nxd5 {[%emt 0:00:00]} 18. Bxd5 {[%emt 0:00:07]} Bxd5 {[%emt 0:00:00]} 19. Ne4 $2 {[%emt 0:00:03] Now White is beyond hope.} (19. c4 $17 Bc6 20. Ne1) 19... f5 $19 {[%emt 0:00:00]} 20. Bxh6 {[%emt 0:01:03]} fxe4 {[%emt 0:00:00]} 21. dxe4 {[%emt 0:00:02]} Bb3 {[%emt 0:00:00]} ({But not} 21... gxh6 $2 22. exd5 Nf4 23. Qc4 $19) 22. Bg5 {[%emt 0:00:33]} Bxd1 {[%emt 0:00:00]} 23. Rxd1 {[%emt 0:00:02]} c4 {[%emt 0:00:00]} 24. g3 {[%emt 0:00:22]} Re6 {[%emt 0:00:00]} 25. h4 {[%emt 0:00:04]} Rf8 {[%emt 0:00:00]} 26. h5 {[%emt 0:00:11]} Nh8 {[%emt 0:00:00]} 27. Kg2 {[%emt 0:00:55]} Nf7 {[%emt 0:00:00]} 28. Bh4 {[%emt 0:00:09]} Nh6 {[%emt 0:00:00]} 29. Kh3 {[%emt 0:01:13]} (29. g4 $142) 29... Ree8 {[%emt 0:00:00] Hoping for ...Qc8+.} 30. g4 {[%emt 0:00:11]} Kh8 {[%emt 0:00:00][%cal Oh6g4] And now ...Nxg4! would win.} 31. Ng5 {[%emt 0:00:35]} (31. Nh2 {is a better defense.}) 31... b5 {[%emt 0:00:00]} 32. f3 {[%emt 0:00:04]} Nf7 {[%emt 0:00:00]} 33. Qd2 {[%emt 0:00:21]} Nxg5+ {[%emt 0:00:00]} 34. Qxg5 {[%emt 0:00:02]} Rxf3+ {[%emt 0:00:00]} 35. Kg2 {[%emt 0:00:01]} Qf7 {[%emt 0:00:00][%cal Of3f2] ( -> ...Rf2+!)} 36. h6 {[%emt 0:00:11]} g6 {[%emt 0:00:00]} 37. Rd6 {[%emt 0:00:23] [#]} Kh7 {[%emt 0:00:00]} (37... Rf2+ $142 $1 38. Bxf2 Qxf2+ 39. Kh3 Qf1+ 40. Kh2 Bg1+ 41. Kh1 Bf2+ 42. Kh2 Qg1+ 43. Kh3 Qh1#) 38. Qd2 {[%emt 0:00:46]} Be3 {[%emt 0:00:00]} 39. Qe2 {[%emt 0:00:05]} Rf8 {[%emt 0:00:00] Black mates.} 40. g5 {[%emt 0:01:01]} Qf4 {[%emt 0:01:24]} 41. Rf6 {[%emt 0:00:19]} Qg4+ {[%emt 0:00:00] Weighted Error Value: White=1.07/Black=0.18 (very precise)} 0-1